bitfinex/quotes_ETHUSD_20251201
["timestamp","ask_amount","ask_price","bid_price","bid_amount"]
[1764594448526,0.002,2834.0,2833.9,1.60278392]
[1764594448999,0.002,2834.0,2833.9,5.13148994]
[1764594449375,0.002,2834.0,2833.9,5.57488994]
[1764594450817,0.002,2834.0,2833.9,5.13148994]
[1764594451201,0.002,2834.0,2833.9,5.57488994]
[1764594451880,0.002,2834.0,2833.9,5.34288994]
[1764594452084,0.002,2834.0,2833.9,5.13148994]
[1764594452615,0.002,2834.0,2833.9,5.98039394]
[1764594454343,0.002,2834.3,2834.0,1.13109811]
[1764594454525,0.002,2834.3,2834.2,1.73179811]
[1764594455037,0.002,2834.3,2834.2,2.17519811]
[1764594455192,0.002,2834.3,2834.2,5.49213062]
[1764594455643,0.002,2834.3,2834.2,5.08662662]
[1764594455806,0.002,2834.3,2834.2,5.53002662]
[1764594455995,0.002,2834.3,2834.2,6.5775627]
[1764594456194,0.002,2834.3,2834.2,6.3455627]
[1764594456414,0.002,2834.3,2834.2,1.77313019]
[1764594456695,0.002,2834.3,2834.2,0.232]
[1764594457295,0.002,2834.3,2834.2,4.48592662]
[1764594457732,0.002,2834.3,2834.2,0.95759411]
[1764594457897,0.002,2834.3,2834.2,4.48592662]
[1764594458094,0.002,2834.3,2834.2,0.95759411]
[1764594458423,0.002,2834.3,2834.2,4.48592662]
[1764594458622,0.002,2834.3,2834.2,0.95759411]
[1764594459217,0.002,2834.3,2834.2,4.48592662]
[1764594459526,0.002,2834.3,2834.2,0.95759411]
[1764594459895,0.002,2834.3,2834.2,4.25392662]
[1764594460103,0.002,2834.3,2834.2,4.92704928]
[1764594460291,0.002,2834.3,2834.2,0.95759411]
[1764594460922,0.0012,2834.3,2834.2,0.95759411]
[1764594461094,0.0012,2834.3,2834.2,4.92932662]
[1764594462298,0.0012,2834.3,2834.2,4.48592662]
[1764594462502,0.4204,2834.8,2834.2,4.48592662]
[1764594462704,0.4204,2834.8,2834.2,5.30319355]
[1764594462916,0.002,2834.9,2834.2,5.07119355]
[1764594463121,0.1837,2834.9,2834.3,1.48044347]
[1764594463302,0.002,2834.9,2834.3,1.94084347]
[1764594463496,0.002,2834.9,2834.5,0.72559411]
[1764594463696,0.002,2834.9,2834.6,1.36298447]
[1764594463937,0.1837,2834.9,2834.7,0.232]
[1764594465110,0.002,2834.9,2834.8,0.4902]
[1764594465636,0.002,2834.9,2834.8,4.01778572]
[1764594465853,3.52837612,2835.8,2834.9,1.13109811]
[1764594465854,0.002,2835.8,2834.9,1.13109811]
[1764594466005,0.002,2835.8,2835.7,0.537]
[1764594466543,0.002,2835.8,2835.7,0.769]
[1764594466699,0.002,2835.8,2835.7,0.537]
[1764594466910,0.002,2835.8,2835.4,0.0468]
[1764594467108,0.002,2835.8,2835.5,0.232]
[1764594467533,0.002,2835.8,2835.6,0.232]
[1764594467731,0.002,2835.8,2835.2,0.72559411]
[1764594467732,0.1837,2835.8,2835.2,0.72559411]
[1764594468006,0.6509,2835.8,2835.3,0.7780019]
[1764594468211,0.4553,2835.4,2834.4,7.05616708]
[1764594468409,0.4553,2835.4,2834.5,0.232]
[1764594468907,0.4553,2835.4,2834.5,0.95759411]
[1764594469746,0.4553,2835.4,2834.7,0.72559411]
[1764594469910,0.4553,2835.4,2834.6,3.52783461]
[1764594469911,0.4672,2835.3,2834.6,3.52783461]
[1764594470213,0.4672,2835.3,2834.7,0.232]
[1764594470417,0.4672,2835.3,2834.7,0.95759411]
[1764594470742,0.1837,2835.8,2834.7,0.232]
[1764594470743,3.71012385,2835.8,2834.7,0.232]
[1764594470941,0.4672,2835.7,2834.7,0.95759411]
[1764594471146,0.4672,2835.7,2834.8,1.15410979]
[1764594471736,0.1837,2835.8,2835.0,0.72559411]
[1764594471944,0.1837,2835.8,2835.1,0.2788]
[1764594472541,0.002,2835.8,2835.1,0.7392]
[1764594473345,7.54720487,2835.8,2833.9,3.52863295]
[1764594473534,0.4925,2835.7,2834.2,7.74566502]
[1764594473708,3.52659049,2835.6,2834.5,0.72559411]
[1764594473913,0.002,2835.8,2834.8,0.72559411]
[1764594474110,0.002,2835.8,2834.9,0.405504]
[1764594474331,0.4925,2835.7,2835.0,0.232]
[1764594474543,0.4925,2835.7,2835.1,0.0468]
[1764594474746,0.002,2835.8,2835.1,0.0468]
[1764594475432,0.002,2835.8,2835.7,0.4629]
[1764594475914,0.002,2835.8,2835.7,0.232]
[1764594476749,0.002,2835.8,2835.3,1.18259411]
[1764594476925,0.002,2835.8,2835.7,0.4629]
[1764594478147,0.002,2835.8,2835.7,5.17196023]
[1764594480148,0.002,2835.8,2835.7,5.57746423]
[1764594481264,0.002,2836.1,2835.8,1.13109811]
[1764594481420,0.002,2836.1,2836.0,0.4629]
[1764594481620,0.002,2836.1,2836.0,1.12499981]
[1764594481870,0.002,2836.1,2836.0,0.66799981]
[1764594482053,0.002,2836.1,2836.0,0.89999981]
[1764594482368,0.002,2836.1,2836.0,5.608687]
[1764594483377,0.002,2836.1,2836.0,5.151687]
[1764594483521,0.002,2836.1,2836.0,6.014191]
[1764594483954,0.0012,2836.1,2836.0,6.014191]
[1764594484142,0.002,2836.4,2836.1,1.13109811]
[1764594484347,0.1817,2838.2,2836.1,1.13109811]
[1764594484348,0.4925,2838.5,2836.3,28.07849706]
[1764594484588,0.1921,2838.9,2836.9,0.405504]
[1764594484791,0.1921,2838.9,2837.0,0.232]
[1764594484792,0.4925,2838.8,2837.0,0.232]
[1764594485915,0.4925,2838.8,2837.1,0.72559411]
[1764594486059,0.4925,2838.8,2837.2,0.96714925]
[1764594486262,0.4925,2838.8,2837.4,0.72559411]
[1764594486460,0.4925,2838.8,2837.5,0.232]
[1764594486767,4.01514169,2838.8,2837.5,0.232]
[1764594487012,0.4925,2838.8,2837.6,0.72559411]
[1764594487216,0.4925,2838.7,2837.7,0.96714925]
[1764594487405,0.4925,2838.7,2837.5,0.232]
[1764594488418,3.52286338,2838.6,2837.7,0.72559411]
[1764594488719,3.52286338,2838.6,2837.6,0.72559411]
[1764594488720,7.04572676,2838.6,2837.6,0.72559411]
[1764594488898,0.1921,2837.7,2837.6,0.72559411]
[1764594489098,0.1921,2837.8,2837.6,0.72559411]
[1764594489299,0.4607,2837.7,2837.5,0.95759411]
[1764594489524,0.3368,2837.6,2837.5,4.48182318]
[1764594489829,0.4925,2838.0,2837.6,0.72559411]
[1764594490022,0.4925,2838.8,2837.6,1.52619934]
[1764594490210,0.4925,2838.8,2837.8,10.5715695]
[1764594490415,0.4925,2838.8,2837.9,0.72559411]
[1764594490610,0.4925,2838.8,2838.0,1.36171636]
[1764594490919,0.4925,2838.8,2838.0,0.13567636]
[1764594491126,4.01514275,2838.8,2838.0,0.13567636]
[1764594491293,0.4925,2838.8,2838.0,0.13567636]
[1764594491488,3.71465006,2838.9,2838.0,0.13567636]
[1764594491489,0.4925,2838.7,2838.0,0.13567636]
[1764594491926,0.4925,2838.8,2838.0,1.27896036]
[1764594492221,0.4925,2838.7,2838.0,0.13567636]
[1764594492424,0.1921,2838.9,2838.2,0.72559411]
[1764594492631,0.6846,2839.2,2838.2,0.72559411]
[1764594492822,0.6846,2839.2,2838.3,1.12960462]
[1764594493124,0.6846,2839.2,2838.4,0.232]
[1764594493622,0.1921,2839.2,2838.4,0.232]
[1764594493809,0.4925,2839.7,2838.5,0.72559411]
[1764594494197,0.4925,2839.7,2838.5,1.18259411]
[1764594494419,0.4925,2839.7,2838.8,0.72559411]
[1764594494643,0.4925,2839.7,2838.9,0.231]
[1764594494811,4.01399874,2839.7,2838.9,0.231]
[1764594495017,0.6528,2839.0,2838.4,0.72559411]
[1764594495217,0.4925,2839.6,2838.5,0.231]
[1764594495415,0.4925,2839.6,2838.5,0.688]
[1764594496047,0.4925,2839.6,2838.6,0.457]
[1764594496547,0.4925,2839.6,2838.8,0.72559411]
[1764594497345,4.0142024,2839.6,2838.8,0.72559411]
[1764594497543,4.0142024,2839.6,2838.9,0.231]
[1764594497544,0.89412024,2839.6,2838.9,0.231]
[1764594497847,0.4925,2839.5,2838.9,0.231]
[1764594498344,0.4925,2839.5,2839.0,0.72559411]
[1764594498549,0.4607,2839.0,2838.1,7.04696804]
[1764594498719,0.3368,2838.9,2838.2,0.231]
[1764594499063,0.5289,2838.9,2838.2,0.94918411]
[1764594499513,0.4925,2838.8,2838.2,0.72559411]
[1764594499711,0.4925,2838.8,2838.3,0.231]
[1764594500166,0.4607,2838.4,2837.8,3.5238565]
[1764594500468,0.3368,2838.3,2838.0,3.52360817]
[1764594500744,0.3368,2838.3,2837.4,0.457]
[1764594500745,0.3368,2838.3,2837.4,7.04870656]
[1764594500921,0.4595,2838.0,2837.5,0.231]
[1764594501323,0.6615,2837.9,2837.5,0.95659411]
[1764594501531,0.6615,2837.9,2837.5,0.72559411]
[1764594501738,0.4925,2837.8,2837.6,0.231]
[1764594501927,0.4925,2837.8,2837.1,3.68198296]
[1764594501928,0.4925,2837.8,2837.7,0.231]
[1764594502141,0.9532,2837.8,2837.7,0.231]
[1764594503274,4.94164568,2837.8,2837.7,0.231]
[1764594503462,4.4770565,2837.8,2837.7,0.231]
[1764594503962,4.8825605,2837.8,2837.7,0.231]
[1764594504164,0.405504,2837.7,2836.4,0.001]
[1764594504350,0.5704,2836.5,2836.4,0.001]
[1764594504729,4.58817153,2836.5,2836.4,0.232]
[1764594505353,1.0627,2836.5,2836.4,0.232]
[1764594506656,4.58817153,2836.5,2836.4,0.232]
[1764594507027,1.0619,2836.5,2836.4,0.232]
[1764594507253,0.1879,2836.9,2836.4,3.75759039]
[1764594507461,0.6802,2836.9,2836.4,8.02579874]
[1764594507641,0.1879,2836.9,2836.5,0.72559411]
[1764594507953,0.1879,2836.9,2836.4,3.75759582]
[1764594508145,0.4923,2837.3,2836.5,1.44559411]
[1764594508463,4.01694371,2837.2,2836.6,1.20233816]
[1764594508668,4.01694371,2837.2,2836.6,3.52529782]
[1764594508828,0.4923,2837.1,2836.7,0.231]
[1764594509442,0.405504,2837.6,2836.7,0.231]
[1764594509680,0.1879,2836.8,2836.5,3.52539931]
[1764594509864,0.1879,2836.8,2836.4,0.001]
[1764594510196,0.4874,2836.5,2836.4,0.001]
[1764594510384,0.4874,2836.5,2836.4,0.232]
[1764594510794,0.1879,2836.8,2836.4,0.232]
[1764594511184,0.4874,2836.5,2836.4,0.232]
[1764594511367,0.4855,2837.1,2836.4,3.75759582]
[1764594511567,0.4855,2837.4,2836.5,1.10135369]
[1764594511767,0.4855,2837.4,2836.5,0.37575958]
[1764594511768,4.00986769,2837.4,2836.5,0.37575958]
[1764594512000,0.4855,2837.3,2836.5,0.37575958]
[1764594512513,3.52460172,2837.2,2836.6,3.52534724]
[1764594512696,0.1989,2836.6,2836.5,1.10135369]
[1764594512894,0.4855,2837.1,2836.5,3.75647153]
[1764594513203,0.1989,2836.9,2836.5,0.95659411]
[1764594513418,0.4855,2837.1,2836.5,0.95659411]
[1764594514387,0.4855,2837.1,2836.5,0.231]
[1764594514698,0.6863,2836.6,2836.4,0.001]
[1764594514898,0.6863,2836.6,2836.5,0.231]
[1764594514899,0.1989,2836.6,2836.5,0.231]
[1764594515307,1.1718,2836.6,2836.5,0.231]
[1764594515510,1.1718,2836.6,2836.4,0.001]
[1764594515718,0.1989,2836.9,2836.5,0.231]
[1764594516531,0.1989,2836.9,2836.5,0.232]
[1764594516532,0.6844,2836.9,2836.5,0.232]
[1764594516833,0.4874,2836.6,2836.5,0.232]
[1764594517125,0.4855,2836.8,2836.5,3.757407]
[1764594517327,0.4855,2837.3,2836.5,4.1332477]
[1764594517517,0.4855,2837.3,2836.5,7.65871923]
[1764594518096,0.4855,2837.6,2836.6,0.72559411]
[1764594518605,0.4855,2837.6,2836.6,1.21459411]
[1764594518822,3.6927729,2837.9,2836.7,11.06466891]
[1764594518823,3.52393927,2837.8,2836.7,11.06466891]
[1764594519020,0.4855,2837.7,2836.8,1.1790263]
[1764594519223,0.4855,2837.7,2836.8,1.90462041]
[1764594519392,0.4855,2837.6,2836.8,1.1790263]
[1764594519591,0.4855,2837.8,2836.9,0.231]
[1764594520722,7.04796136,2837.7,2836.9,0.231]
[1764594520931,7.04796136,2837.7,2837.0,0.231]
[1764594521223,0.4855,2837.6,2837.0,0.231]
[1764594522102,0.4855,2837.7,2837.0,0.231]
[1764594522826,0.47845279,2837.7,2837.0,0.231]
[1764594523127,3.52410487,2837.6,2837.0,3.75580834]
[1764594523324,4.00243366,2837.7,2837.0,0.95659411]
[1764594523496,3.52398087,2837.7,2837.0,0.231]
[1764594523695,3.69275131,2837.9,2837.0,3.75575871]
[1764594523895,0.169,2837.9,2837.1,0.87879411]
[1764594524327,0.169,2838.1,2837.2,0.4931]
[1764594524695,0.1989,2838.3,2837.2,0.4931]
[1764594524897,4.20770152,2838.3,2837.3,7.04895498]
[1764594525394,0.4855,2838.2,2837.3,7.04895498]
[1764594525596,0.4855,2838.2,2837.4,1.10666075]
[1764594525894,0.4855,2838.2,2837.5,0.231]
[1764594526105,0.4855,2838.2,2837.4,1.10666075]
[1764594526320,0.4855,2838.2,2837.5,0.231]
[1764594526832,0.6863,2837.6,2836.9,0.72559411]
[1764594527131,0.2893,2837.4,2837.0,0.231]
[1764594527628,0.7748,2837.4,2837.1,0.231]
[1764594528446,0.7748,2837.4,2836.7,0.72559411]
[1764594528660,0.2893,2837.4,2836.8,1.36116358]
[1764594528969,0.1989,2837.6,2836.8,1.36116358]
[1764594529262,0.1989,2837.6,2837.0,0.72559411]
[1764594529830,0.4855,2837.5,2836.9,0.72559411]
[1764594530163,0.4855,2837.5,2836.9,1.28677644]
[1764594530164,0.4847,2837.5,2836.9,1.28677644]
[1764594530516,0.1989,2837.6,2836.9,1.28677644]
[1764594531223,3.715,2838.6,2837.5,0.6289]
[1764594531224,3.52338663,2838.2,2837.5,0.6289]
[1764594531421,3.72218194,2838.3,2837.6,0.231]
[1764594531665,0.1989,2838.3,2837.6,0.231]
[1764594532130,0.6844,2838.3,2837.6,0.231]
[1764594532854,0.1989,2838.5,2837.6,0.231]
[1764594533254,0.1989,2838.5,2837.7,10.57194204]
[1764594533466,0.1989,2838.5,2837.8,1.0802942]
[1764594533627,0.478,2838.4,2837.9,0.231]
[1764594534324,0.4733,2838.0,2837.8,1.0802942]
[1764594534531,0.4733,2838.0,2837.9,0.231]
[1764594535027,0.9513,2838.0,2837.9,0.231]
[1764594535236,0.478,2838.4,2837.9,0.231]
[1764594535454,7.52425671,2838.4,2837.9,0.231]
[1764594535821,0.4733,2838.0,2837.5,0.001]
[1764594536057,0.48,2838.3,2837.6,0.231]
[1764594536224,0.1839,2837.9,2837.6,0.231]
[1764594536629,0.6619,2837.9,2837.6,0.231]
[1764594536818,0.4733,2837.7,2837.5,0.001]
[1764594537022,0.6619,2837.9,2837.5,0.001]
[1764594537023,0.3248,2837.6,2837.5,0.001]
[1764594537257,3.84890487,2837.6,2837.5,0.232]
[1764594537472,0.8028,2837.6,2837.5,0.232]
[1764594537818,4.32690487,2837.6,2837.5,0.232]
[1764594538022,0.8028,2837.6,2837.5,0.232]
[1764594538222,0.8028,2837.6,2837.5,0.2137]
[1764594539060,4.32690487,2837.6,2837.5,0.2137]
[1764594539646,0.8028,2837.6,2837.5,0.2137]
[1764594539828,4.32690487,2837.6,2837.5,0.2137]
[1764594540224,4.32690487,2837.6,2837.0,3.52477035]
[1764594540425,4.32690487,2837.6,2837.1,0.231]
[1764594541061,0.478,2837.5,2837.1,0.231]
[1764594541263,0.4718,2837.2,2836.5,0.72659411]
[1764594541465,0.3263,2837.1,2836.6,0.65631836]
[1764594541829,0.8043,2837.1,2836.6,0.42531836]
[1764594542137,0.8043,2837.1,2836.5,0.001]
[1764594542138,0.6542,2836.7,2836.5,0.001]
[1764594542338,0.3426,2836.6,2836.5,0.001]
[1764594542526,0.478,2837.0,2836.5,0.232]
[1764594542527,0.1839,2836.9,2836.5,0.232]
[1764594542952,0.6619,2836.9,2836.5,0.232]
[1764594543147,4.18695569,2836.9,2836.5,0.232]
[1764594543366,0.1839,2836.9,2836.5,0.232]
[1764594543570,0.1839,2836.9,2836.5,4.13326076]
[1764594543767,0.4733,2836.6,2836.5,0.001]
[1764594543937,0.9513,2836.6,2836.5,0.232]
[1764594544143,0.4733,2836.6,2836.5,0.232]
[1764594544478,0.9513,2836.6,2836.5,0.001]
[1764594544660,0.9513,2836.6,2836.5,0.232]
[1764594545339,4.47664724,2836.6,2836.5,0.232]
[1764594545542,4.47664724,2836.6,2836.5,0.001]
[1764594545730,4.47664724,2836.6,2836.5,0.232]
[1764594546040,0.9513,2836.6,2836.5,0.232]
[1764594546244,4.47664724,2836.6,2836.5,0.232]
[1764594546463,0.9513,2836.6,2836.5,0.232]
[1764594546777,0.1839,2836.9,2836.5,0.232]
[1764594547116,0.1839,2836.9,2836.5,3.75743547]
[1764594547228,0.1839,2836.9,2836.5,4.48584925]
[1764594547431,0.1839,2836.9,2836.6,0.72559411]
[1764594547868,0.4733,2836.7,2836.5,0.001]
[1764594548042,3.70887444,2836.9,2836.6,0.231]
[1764594548359,4.00273921,2837.1,2836.6,0.231]
[1764594548542,7.52747842,2837.1,2836.6,0.231]
[1764594548726,0.478,2837.0,2836.6,0.231]
[1764594548933,0.478,2837.4,2836.6,7.28169448]
[1764594549132,3.52410487,2837.6,2836.7,1.80640579]
[1764594549361,3.52410487,2837.6,2836.9,0.72559411]
[1764594549764,7.04820974,2837.6,2836.9,0.72559411]
[1764594549933,7.04820974,2837.6,2836.8,0.72559411]
[1764594549934,0.478,2837.6,2836.8,0.72559411]
[1764594550139,4.18563575,2837.9,2836.9,0.93392517]
[1764594550567,0.478,2837.8,2836.9,0.93392517]
[1764594550742,0.478,2837.8,2836.8,0.4824]
[1764594550949,0.478,2837.8,2836.7,4.25081708]
[1764594551142,0.478,2837.8,2836.7,7.77604005]
[1764594551545,7.04796136,2837.7,2836.7,4.25081708]
[1764594551745,0.478,2837.8,2836.8,0.44818171]
[1764594551961,4.00187579,2837.8,2836.8,0.44818171]
[1764594552199,7.52575158,2837.8,2836.8,0.44818171]
[1764594552548,7.04775158,2837.8,2836.8,0.44818171]
[1764594552744,0.478,2837.7,2836.8,0.44818171]
[1764594552983,0.478,2837.7,2836.9,0.87066218]
[1764594553278,0.4772,2837.7,2837.0,0.231]
[1764594553788,3.52410487,2837.6,2837.0,0.231]
[1764594554080,0.1839,2837.9,2837.1,0.1488]
[1764594554481,7.23138835,2837.9,2837.1,0.1488]
[1764594554847,7.23138835,2837.9,2837.1,0.97881306]
[1764594555047,0.1839,2837.9,2837.1,2.18680717]
[1764594555347,0.1839,2837.9,2837.1,1.70440717]
[1764594555656,4.18567948,2837.9,2837.1,1.70440717]
[1764594555976,3.52527013,2838.3,2837.8,0.461]
[1764594555977,0.407504,2838.3,2837.8,0.461]
[1764594556147,0.478,2838.2,2837.9,0.231]
[1764594556544,0.478,2838.2,2837.3,0.72559411]
[1764594556545,0.4733,2838.0,2837.3,0.72559411]
[1764594556781,0.4733,2838.0,2837.4,0.231]
[1764594556993,0.6619,2837.9,2837.4,1.03157976]
[1764594557157,0.6619,2837.9,2837.5,0.231]
[1764594557349,0.478,2837.8,2837.5,0.231]
[1764594557542,0.1839,2837.9,2837.5,0.231]
[1764594557543,7.94143202,2838.3,2837.5,0.231]
[1764594557748,7.94143202,2838.3,2837.5,3.75510873]
[1764594557996,7.45399162,2838.3,2837.5,4.48305268]
[1764594558194,0.002,2838.3,2837.6,0.4824]
[1764594558891,0.478,2838.2,2837.5,0.72794395]
[1764594559052,0.002,2838.3,2837.7,0.231]
[1764594559477,3.52525266,2838.3,2837.7,0.231]
[1764594559756,7.52660324,2838.3,2837.7,0.231]
[1764594559959,0.48,2838.3,2837.7,3.75489191]
[1764594560174,0.002,2838.3,2837.8,0.72789326]
[1764594560781,0.002,2838.3,2837.8,1.21029326]
[1764594561458,0.002,2838.3,2837.8,0.72789326]
[1764594561660,4.00326411,2838.3,2837.9,0.231]
[1764594561888,0.002,2838.3,2838.2,3.98435987]
[1764594562052,0.002,2838.3,2838.2,5.10838997]
[1764594562256,0.4753,2838.3,2838.2,0.231]
[1764594562458,0.9533,2838.3,2838.2,0.231]
[1764594562873,0.9533,2838.3,2837.3,0.72559411]
[1764594563082,0.495,2838.2,2837.4,0.231]
[1764594563458,0.495,2838.2,2837.5,0.231]
[1764594563971,7.04696804,2838.1,2837.1,0.1488]
[1764594564177,7.04696804,2838.1,2837.3,0.72559411]
[1764594564388,0.495,2838.0,2837.3,1.18858996]
[1764594564556,0.495,2838.0,2837.4,0.231]
[1764594564755,0.1863,2837.9,2837.4,0.231]
[1764594564962,0.002,2838.3,2837.4,0.231]
[1764594565153,4.02024084,2838.3,2837.4,0.231]
[1764594565366,4.02024144,2838.3,2837.5,0.190489]
[1764594565558,0.495,2838.2,2837.5,0.190489]
[1764594565881,3.52348402,2838.1,2837.5,0.190489]
[1764594566086,3.52348402,2838.1,2837.6,0.72559411]
[1764594566292,3.52348402,2838.1,2837.6,0.46712887]
[1764594566585,0.495,2838.0,2837.5,0.190489]
[1764594566790,0.495,2838.0,2837.6,0.231]
[1764594566986,0.1863,2837.9,2837.6,0.231]
[1764594567487,0.6813,2837.9,2837.6,0.231]
[1764594567689,0.6813,2837.9,2837.6,0.72559411]
[1764594567990,0.1863,2837.9,2837.7,0.231]
[1764594568188,0.1863,2837.9,2837.6,4.24961385]
[1764594568486,0.1863,2837.9,2837.7,0.231]
[1764594569474,0.495,2838.2,2837.7,0.69811029]
[1764594570392,0.495,2838.2,2837.8,3.5238565]
[1764594570597,0.002,2838.3,2837.8,7.047713]
[1764594570780,0.002,2838.3,2837.8,7.538313]
[1764594571398,0.002,2838.3,2837.8,3.5238565]
[1764594571399,0.4504,2838.2,2837.8,3.5238565]
[1764594571595,0.4504,2838.2,2837.9,0.23]
[1764594571895,0.4804,2838.0,2837.9,0.23]
[1764594572966,0.9308,2838.0,2837.9,0.23]
[1764594573187,4.45442434,2838.0,2837.6,0.72559411]
[1764594573395,7.04709514,2838.1,2837.9,0.23]
[1764594573713,0.6783,2837.6,2836.9,0.4906]
[1764594573914,0.6783,2837.6,2837.3,0.72559411]
[1764594574116,1.1287,2837.6,2837.4,0.23]
[1764594574288,0.3682,2837.5,2836.8,0.001]
[1764594574492,0.3682,2837.5,2837.4,0.001]
[1764594574493,4.34284958,2837.5,2837.4,0.001]
[1764594574673,4.34284958,2837.5,2837.4,0.231]
[1764594575514,5.14933508,2837.5,2837.4,0.231]
[1764594576311,1.6242855,2837.5,2837.4,0.231]
[1764594576512,4.34202907,2837.5,2837.4,0.231]
[1764594577428,7.49888854,2838.3,2837.4,4.7403455]
[1764594577718,0.4504,2838.2,2837.4,3.7553455]
[1764594577923,7.04848854,2838.3,2837.4,3.7553455]
[1764594578077,7.04848854,2838.3,2837.4,8.00768994]
[1764594578078,7.49888854,2838.3,2837.4,8.00768994]
[1764594578278,7.49888854,2838.3,2837.4,4.48333666]
[1764594578483,0.4504,2838.2,2837.4,8.00768994]
[1764594578981,3.97377945,2838.2,2837.4,8.00768994]
[1764594579582,7.4971589,2838.2,2837.4,4.48333666]
[1764594580108,0.4504,2838.1,2837.4,4.48333666]
[1764594580817,3.52360817,2838.0,2837.4,0.231]
[1764594581021,3.52360817,2838.0,2837.5,0.23]
[1764594581337,0.1979,2837.9,2837.5,0.23]
[1764594581623,0.6483,2837.9,2837.5,0.23]
[1764594581806,0.4804,2837.6,2837.5,0.23]
[1764594582321,0.9308,2837.6,2837.5,0.23]
[1764594582609,0.4804,2837.6,2837.5,0.23]
[1764594582919,0.9308,2837.6,2837.5,0.23]
[1764594583289,4.45490487,2837.6,2837.5,0.23]
[1764594583784,4.122504,2838.3,2837.5,9.36028979]
[1764594583785,0.002,2838.3,2837.5,9.36028979]
[1764594584008,0.002,2838.3,2838.2,9.5148839]
[1764594584184,0.002,2838.3,2838.2,9.7448839]
[1764594584379,0.002,2838.3,2838.2,1.10519411]
[1764594584681,0.002,2838.3,2838.2,0.95559411]
[1764594584824,0.002,2838.3,2838.2,4.97335398]
[1764594584990,0.002,2838.3,2838.2,5.83799724]
[1764594585317,0.002,2838.3,2838.2,6.32859724]
[1764594585920,0.002,2838.3,2838.2,5.83799724]
[1764594588322,0.002,2838.3,2838.2,5.60799724]
[1764594588532,0.002,2838.3,2838.2,6.32859724]
[1764594594435,0.002,2838.3,2838.2,5.83799724]
[1764594595324,0.002,2838.3,2838.2,5.60799724]
[1764594595634,0.002,2838.3,2838.2,5.11359724]
[1764594595934,0.4544,2838.3,2838.2,1.59023737]
[1764594596138,0.4544,2838.3,2838.2,4.47895398]
[1764594596305,0.002,2838.3,2838.2,4.47895398]
[1764594596504,0.9447,2838.3,2837.8,3.5238565]
[1764594596739,0.4513,2837.9,2837.2,8.83791307]
[1764594596904,0.6471,2837.9,2837.5,3.75412763]
[1764594597104,1.1374,2837.9,2837.6,0.37551276]
[1764594597315,1.1374,2837.9,2837.6,0.60551276]
[1764594597515,0.4524,2837.7,2837.4,3.5252692]
[1764594597701,0.346,2837.5,2837.4,0.001]
[1764594598128,0.8363,2837.5,2837.4,0.001]
[1764594598334,0.8363,2837.5,2837.4,0.231]
[1764594599333,4.35972907,2837.5,2837.4,0.231]
[1764594600561,5.14811303,2837.5,2837.4,0.231]
[1764594600836,1.62388396,2837.5,2837.4,0.231]
[1764594601011,0.8355,2837.5,2837.4,0.231]
[1764594601541,0.8355,2837.5,2837.1,0.001]
[1764594601542,4.76523307,2837.5,2837.1,0.001]
[1764594601740,0.405504,2837.1,2836.8,0.001]
[1764594602040,0.5411,2836.9,2836.8,0.001]
[1764594602238,0.946604,2836.9,2836.8,0.001]
[1764594602413,0.405504,2836.8,2836.7,0.228]
[1764594602737,0.4524,2836.6,2836.5,0.231]
[1764594603116,0.9427,2836.6,2836.5,0.231]
[1764594603334,4.46804724,2836.6,2836.5,0.231]
[1764594603541,5.32035596,2836.6,2836.5,0.001]
[1764594603747,1.38950472,2836.6,2836.5,0.001]
[1764594603913,0.9427,2836.6,2836.5,0.001]
[1764594604242,4.46804724,2836.6,2836.5,0.001]
[1764594604553,4.87355124,2836.6,2836.5,0.231]
[1764594605209,4.87355124,2836.6,2836.5,0.001]
[1764594605517,5.71342925,2836.6,2836.5,0.001]
[1764594606007,6.43902336,2836.6,2836.5,0.001]
[1764594606213,1.13109811,2836.5,2836.4,0.001]
[1764594606408,1.94889811,2836.5,2836.2,0.001]
[1764594606642,0.4511,2836.3,2836.2,0.001]
[1764594607013,0.9414,2836.3,2836.2,0.001]
[1764594607214,2.07249811,2836.3,2836.2,0.001]
[1764594607409,5.59821823,2836.3,2836.2,0.001]
[1764594607748,0.405504,2836.2,2836.1,0.001]
[1764594607926,3.09602585,2836.2,2835.2,0.23]
[1764594608128,1.051204,2835.9,2835.2,0.23]
[1764594608619,1.541504,2835.9,2835.2,0.23]
[1764594609245,1.541504,2835.9,2834.6,0.001]
[1764594609433,5.06772142,2835.9,2835.1,0.23]
[1764594609636,5.64705297,2835.9,2835.1,0.23]
[1764594610748,6.37264708,2835.9,2834.6,0.001]
[1764594611044,0.405504,2835.6,2834.6,0.231]
[1764594611344,0.723604,2835.0,2834.6,0.231]
[1764594611538,4.25094086,2835.0,2834.6,0.231]
[1764594611847,5.51905559,2835.0,2834.6,0.231]
[1764594612343,5.51905559,2835.0,2834.6,0.001]
[1764594613451,0.405504,2834.9,2834.6,0.001]
[1764594613745,0.4903,2835.3,2834.6,0.001]
[1764594613948,0.77513155,2835.9,2834.7,0.23]
[1764594613949,0.72559411,2835.7,2834.7,0.23]
[1764594614146,0.84643776,2835.6,2834.6,0.001]
[1764594614452,0.4524,2834.7,2834.6,0.001]
[1764594614749,0.857904,2834.7,2834.6,0.001]
[1764594615052,1.348204,2834.7,2834.6,0.001]
[1764594615468,5.60150827,2834.7,2834.6,0.001]